Cogmind - Beta 9.5 @@@ ROGUE MODE // 2020.04.04 @ 00:42:31 Player: IAMCRAIG Result: Destroyed by S-10 Pest with Light Assault Rifle Performance ------------- Evolutions (0) 0 Regions Visited (2) 400 Robots Destroyed (40) 200 Value Destroyed (625) 625 Prototype IDs (0) 0 Alien Tech Used (0) 0 Bonus (70) 70 TOTAL SCORE: 1295 Bonus ------- Follower Combat Kills 70 Cogmind --------- Core Integrity 0/250 Matter 300/300 Energy 100/100 System Corruption 0% Temperature Cool (0) Movement Walking (240) Ox4 Location -10/Mines Parts ------- > --- POWER (1) -------- (None) > --- PROPULSION (2) --- Aluminum Leg > --- UTILITY (2) ------ High-capacity Storage Unit Medium Armor Plating > --- WEAPON (2) ------- Maul Maul > --- INVENTORY (12) --- Hover Unit Improved Heat Sink Disposable Heat Sink Small Storage Unit Large Storage Unit Large Storage Unit Experimental Sensor Array Improved Terrain Scanner Seismic Analyzer Core Shielding Weapon Shielding Hacking Suite Peak State ------------ > --- POWER ------------ Light Ion Engine > --- PROPULSION ------- Wheel Flight Unit > --- UTILITY ---------- High-capacity Storage Unit Core Shielding > --- WEAPON ----------- Maul Maul > --- INVENTORY -------- Light Treads Hover Unit Disposable Heat Sink Small Storage Unit Large Storage Unit Large Storage Unit Experimental Sensor Array Improved Terrain Scanner Seismic Analyzer Weapon Shielding Medium Armor Plating Hacking Suite [Rating: 11] Favorites ----------- Power Light Ion Engine Engine Light Ion Engine Propulsion Wheel Treads Light Treads Leg Aluminum Leg Wheel Wheel Flight Unit Flight Unit Utility Core Shielding Device Improved Terrain Scanner Storage High-capacity Storage Unit Protection Core Shielding Weapon Maul Energy Gun Medium Laser Launcher Grenade Launcher Impact Weapon Maul Build | -11 -10 -10 ------- Run | Scr Mat Min Slots Evolved . | . . . Power . | . . . Propulsion . | . . . Utility . | . . . Weapon . | . . . Parts Attached 36 | 11 12 13 Power 9 | 2 3 4 Engine 9 | 2 3 4 Core . | . . . Reactor . | . . . Propulsion 16 | 5 3 8 Treads 3 | . . 3 Leg 3 | . . 3 Wheel 9 | 5 3 1 Hover . | . . . Flight 1 | . . 1 Utility 6 | 2 3 1 Device 1 | 1 . . Storage 2 | 1 1 . Processor . | . . . Hackware . | . . . Protection 3 | . 2 1 Artifact . | . . . Weapon 5 | 2 3 . Energy Gun 2 | 2 . . Energy Cannon . | . . . Ballistic Gun . | . . . Ballistic Cannon . | . . . Launcher 1 | . 1 . Special Weapon . | . . . Impact Weapon 2 | . 2 . Slashing Weapon . | . . . Piercing Weapon . | . . . Special Melee Weapon . | . . . Unidentified Prototypes . | . . . Parts Lost 8 | . 3 5 Power 1 | . . 1 Propulsion 5 | . 1 4 Utility . | . . . Weapon 2 | . 2 . Highest Loss Streak 2 | . 2 1 Average Slot Usage (%) 98 | . 98 98 Engine 13 | . 14 13 Treads 3 | . . 7 Leg 2 | . . 4 Wheel 20 | . 27 13 Storage 14 | . 14 14 Protection 13 | . 12 14 Energy Gun 4 | . 9 . Launcher 4 | . 10 . Impact Weapon 17 | . 7 28 Naked Turns . | . . . Heaviest Build 45 | 13 44 45 Greatest Support 32 | 32 26 26 Greatest Overweight (x) 13 | 1 2 13 Average Overweight (x) 1 | . 1 2 Largest Inventory Capacity 12 | 6 12 12 Average Capacity 10 | 5 9 12 Most Carried 12 | 6 12 12 Average Carried 9 | 4 8 11 Final Capacity 12 | 6 12 12 Final Carried 12 | 6 12 12 Class Distribution -------------------- 100% | Mutant Dominant Class ---------------- Mutant | -10/Materials Mutant | -10/Mines Resources | -11 -10 -10 ----------- Run | Scr Mat Min Matter Collected 680 | 310 235 135 Remotely . | . . . Salvage Created 907 | 104 453 350 Parts 45 | 7 30 8 Haulers Intercepted 1 | . 1 . Recyclers Shooed 1 | . 1 . Parts Field Recycled . | . . . Retrieved Matter . | . . . Parts Self-Destructed . | . . . Prevented . | . . . Kills | -11 -10 -10 ------- Run | Scr Mat Min Combat Hostiles Destroyed 21 | . 11 10 Melee 6 | . 2 4 Guns 2 | . 2 . AOE 6 | . 6 . Classes Destroyed 9 | 2 7 . Worker 4 | . 2 2 Tunneler 6 | 2 . 4 Hauler 1 | . 1 . Recycler 2 | 1 . 1 Mechanic 1 | . 1 . Operator 3 | . 3 . Watcher 2 | . 2 . Swarmer 12 | . 2 10 Grunt 9 | . 9 . Best Kill Streak 5 | 3 5 3 Combat Bots Only 3 | . 2 3 Max Kills in Single Turn 2 | 1 2 1 Gunslinging . | . . . Exploded 1 | . 1 . Melee 1 | . 1 1 Uniques/NPCs Destroyed . | . . . Combat | -11 -10 -10 -------- Run | Scr Mat Min Damage Taken 1195 | . 437 758 Core 255 | . 90 165 Absorbed by Shields . | . . . Core Remaining (%) 100 | 100 . . Volleys Fired 44 | 6 38 . Largest 2 | 2 1 . Hottest 100 | 100 50 . Shots Fired 50 | 12 38 . Gun 36 | 12 24 . Cannon . | . . . Launcher 14 | . 14 . Special . | . . . Kinetic . | . . . Thermal 36 | 12 24 . Explosive 14 | . 14 . Electromagnetic . | . . . Robot Hit Streak 19 | 4 19 . Robot Miss Streak 2 | 2 1 . Penetration Max . | . . . Secondary Targets . | . . . Shots Hit Robots 86 | 7 45 34 Core Hits 41 | 4 32 5 Critical Hits . | . . . Critical Kills . | . . . Critical Parts Destroyed . | . . . Melee Attacks 80 | . 22 58 Impact 80 | . 22 58 Slashing . | . . . Piercing . | . . . Sneak Attacks 11 | . 4 7 Combat Hostiles . | . . . Follow-up Attacks 9 | . 1 8 Damage Inflicted 2956 | 97 1577 1282 Guns 366 | 97 269 . Cannons . | . . . Explosions 742 | . 742 . Melee 1848 | . 566 1282 Ramming . | . . . Kinetic . | . . . Thermal 366 | 97 269 . Explosive 742 | . 742 . Electromagnetic . | . . . Impact 1848 | . 566 1282 Slashing . | . . . Piercing . | . . . Highest Corruption . | . . . Average Corruption . | . . . Corruption Purged . | . . . Overload Shots . | . . . Overflow Damage 561 | . 133 428 Projectiles . | . . . Explosions 26 | . 26 . Melee 535 | . 107 428 Knockbacks 6 | . 3 3 Impact 6 | . 3 3 Kinetic . | . . . Secondary . | . . . Self-Inflicted Damage 11 | . 11 . Shots 1 | . 1 . Rammed . | . . . Targets Rammed . | . . . Kicked . | . . . Crushed . | . . . Highest Temperature 117 | 117 94 . Average Temperature 40 | 58 33 . Received Heat Transfer 267 | . 261 6 Siege Activations . | . . . Robots Corrupted . | . . . Combat Hostiles . | . . . Parts Fried 15 | . . 15 Impact Corruptions 28 | . 5 23 Robots Melted . | . . . Combat Hostiles . | . . . Parts Melted 4 | 2 1 1 Heat Transferred 1036 | 296 740 . Parts Sabotaged . | . . . Parts Stolen . | . . . Parts Stripped . | . . . Power Chain Reactions . | . . . Missiles Intercepted . | . . . Alert | -11 -10 -10 ------- Run | Scr Mat Min Peak Influence 374 | 15 374 290 Average Influence 194 | 6 238 178 Maximum Alert Level 1 | . 1 1 Low Security (%) 54 | 100 37 65 Level 1 45 | . 62 34 Level 2 . | . . . Level 3 . | . . . Level 4 . | . . . Level 5 . | . . . High Security . | . . . Max Security . | . . . Squads Dispatched 5 | . 5 . Investigation 3 | . 3 . Extermination . | . . . Reinforcement 2 | . 2 . Assault . | . . . Garrison . | . . . Intercept . | . . . Construction Impeded . | . . . Haulers Reinforced . | . . . Stealth | -11 -10 -10 --------- Run | Scr Mat Min Distress Signals . | . . . Communications Jammed . | . . . Distress Signals . | . . . Times Spotted 45 | . 22 23 Peak Tracking Total 5 | . 3 5 Tactical Retreats 2 | . 1 1 Traps | -11 -10 -10 ------- Run | Scr Mat Min Traps Triggered . | . . . Indirectly . | . . . Trap Hack Attempts . | . . . Triggered . | . . . Disarmed . | . . . Reprogrammed . | . . . Reused . | . . . Traps Extracted . | . . . Installed . | . . . Triggered . | . . . Machines | -11 -10 -10 ---------- Run | Scr Mat Min Machines Disabled 2 | . 1 1 Max in Single Turn 1 | . 1 . Machines Sabotaged . | . . . Garrisons Compromised . | . . . Overloaded Fab Kills . | . . . Fab Network Shutdowns . | . . . Hacking | -11 -10 -10 --------- Run | Scr Mat Min Machines Accessed 9 | . 9 . Terminals 6 | . 6 . Fabricators . | . . . Repair Stations 1 | . 1 . Recycling Units 2 | . 2 . Scanalyzers . | . . . Garrison Access . | . . . Total Hacks 38 | . 38 . Successful 24 | . 24 . Failed 14 | . 14 . Catastrophic 1 | . 1 . Database Lockouts . | . . . Manual 26 | . 26 . Terminals 27 | . 27 . Fabricators . | . . . Repair Stations 2 | . 2 . Recycling Units 9 | . 9 . Scanalyzers . | . . . Garrison Access . | . . . Terminal Hacks 5 | . 5 . Robot Analysis 3 | . 3 . Alert Level 1 | . 1 . Registered Components 1 | . 1 . Fabricator Hacks . | . . . Repair Station Hacks 2 | . 2 . Scan Component 1 | . 1 . Repair 1 | . 1 . Recycling Unit Hacks 3 | . 3 . Report Inventory 2 | . 2 . Retrieve Components 1 | . 1 . Scanalyzer . | . . . Garrison Access Hacks . | . . . Unauthorized Hacks 34 | . 34 . Terminals 11 | . 11 . Track 2 | . 2 . Assimilate 3 | . 3 . Botnet 4 | . 4 . Disrupt 1 | . 1 . Operators 1 | . 1 . Fabricators . | . . . Repair Stations . | . . . Recycling Units 3 | . 3 . Monitor 1 | . 1 . Reject 1 | . 1 . Mask 1 | . 1 . Scanalyzers . | . . . Garrison Access . | . . . Data Cores Recovered 1 | . 1 . Used 1 | . 1 . Hacking Detections 9 | . 9 . Full Trace Events 2 | . 2 . Feedback Events . | . . . Feedback Blocked . | . . . Robot Schematics Acquired . | . . . Robots Built . | . . . Matter . | . . . Time . | . . . Total Robot Build Rating . | . . . Part Schematics Acquired . | . . . Parts Built . | . . . Matter . | . . . Time . | . . . Total Part Build Rating . | . . . Parts Repaired 1 | . 1 . Time 26 | . 26 . Parts Recycled . | . . . Recycled Matter . | . . . Retrieved Matter . | . . . Retrieved Components 3 | . 3 . Parts Scanalyzed . | . . . Part Schematics Acquired . | . . . Parts Damaged . | . . . Bothacking | -11 -10 -10 ------------ Run | Scr Mat Min Used RIF Installer . | . . . Robots Hacked . | . . . Non-combat . | . . . Combat . | . . . Robot Hacks Applied . | . . . Relay Couplers Released . | . . . Robots Rewired . | . . . Allies Hacked . | . . . Hacks Repelled . | . . . Allies | -11 -10 -10 -------- Run | Scr Mat Min Total Allies 4 | . 1 3 Largest Group 3 | . 1 3 Highest-Rated Group 40 | . 10 40 Highest-Rated Ally 16 | . 10 16 Total Orders . | . . . Ally Attacks 32 | . . 32 Total Damage 427 | . . 427 Kills 10 | . . 10 Allies Corrupted . | . . . Allies Melted . | . . . Intel | -11 -10 -10 ------- Run | Scr Mat Min Robot Analysis Total 3 | . 3 . Derelict Logs Recovered 1 | . . 1 Drone Launches . | . . . Drone Recoveries . | . . . Exploration | -11 -10 -10 ------------- Run | Scr Mat Min Turns Passed 1845 | 129 853 863 Spaces Moved 1329 | 94 696 539 Core 2 | 1 . 1 Treads 10 | . . 10 Legs 31 | . . 31 Wheels 1286 | 93 696 497 Hover . | . . . Flight . | . . . Fastest Speed 50 | 50 80 100 Average Speed 104 | 91 92 123 Slowest Speed 700 | 100 100 700 Overloaded Moves . | . . . Propulsion Burnouts . | . . . Robots Hopped . | . . . Cave-ins Triggered . | . . . Exploration Rate (%) 52 | 4 90 63 Regions Visited 2 Branch Regions 1 Pre-discovered Areas . | . . . Known Exits Taken . | . . . Unknown Exits Taken 2 | 1 1 . Scrap Searched 3 | . . 3 Spaces Dug 10 | . 10 . Terrain Destroyed 67 | . 67 . Melee 1 | . 1 . Projectile . | . . . AOE 66 | . 66 . Actions | -11 -10 -10 --------- Run | Scr Mat Min Total 1594 | 123 832 639 Wait 72 | . 44 28 Move 1327 | 93 695 539 Hop . | . . . Pick Up 24 | 7 14 3 Fast Attach 20 | 10 3 7 Attach 6 | . 4 2 Detach 1 | 1 . . Swap 10 | 1 5 4 Drop 25 | 5 10 10 Fire 44 | 6 38 . Melee 65 | . 19 46 Ram . | . . . Kick . | . . . Crush . | . . . Escape Stasis . | . . . Rewire . | . . . Trap . | . . . Miscellaneous . | . . . Route ------- -11/Scrapyard -10/Materials (discovered 4 exits: [*Mat x2] / [*Min x2]) -10/Mines (discovered 2 exits: [*Mat] / [*Exi]) History --------- Turn | Location | Event 2 | -11/Scrapyard | Met Revision 17 17 | -11/Scrapyard | Discovered new exit (range 16) 130 | -11/Scrapyard | Entered Materials 130 | -10/Materials | Discovered new exit (range 14) 298 | -10/Materials | Repaired Core Shielding 319 | -10/Materials | Build established: Mutant 373 | -10/Materials | Discovered new exit (range 4) 552 | -10/Materials | Discovered new exit (range 15) 642 | -10/Materials | Discovered new exit (range 11) 983 | -10/Materials | Entered Mines 983 | -10/Mines | Accompanied by 1 ally 1013 | -10/Mines | Core integrity fell below 50% 1099 | -10/Mines | Learned Materials trap positions 1214 | -10/Mines | Assisted by bots powering up and referring to "LRC-V3" 1377 | -10/Mines | Deemed a non-threat by the Exiles lab entrance 1379 | -10/Mines | Discovered new exit (range 5) 1532 | -10/Mines | Discovered new exit (range 6) 1619 | -10/Mines | Found a damaged Exp. Sensor Array with a note attached 1639 | -10/Mines | Found Prototype Device 1819 | -10/Mines | Core integrity fell below 20% 1846 | -10/Mines | Destroyed by S-10 Pest with Light Assault Rifle Last Messages --------------- 01756_ Acquired Aluminum Leg. 01760_ Acquired 12 matter. 01764_ K-01 Serf collects debris. 01767_ Acquired 18 matter. 01770_ K-01 Serf collects debris. 01806_ Lgt. Ion Engine destroyed. 01807_ Destroyed Flight Unit. 01807_ S-10 Pest system corrupted by crushing effect. 01807_ Maul follow-up attack on S-10 Pest. 01807_ Destroyed Flight Unit. 01807_ S-10 Pest system corrupted by crushing effect. 01808_ S-10 Pest system terminally corrupted. 01808_ Lgt. Ion Engine fried. 01818_ Maul follow-up attack on S-10 Pest. 01834_ Acquired 10 matter. 01839_ Destroyed Flight Unit. 01839_ S-10 Pest system corrupted by crushing effect. 01840_ S-10 Pest system terminally corrupted. 01840_ Flight Unit fried. 01842_ Aluminum Leg destroyed. Map ----- +----------------------------------------------------+ | #####??????????????????????????????????????? | | %!!%#??????????????????????????????????????? | | ###%#??????????????????????????????????????? | | ??#!###????????????????????????????????????? | | ??#%**#????????????????????????????????????? | | ??###=#????????????????????????????????????? | | ????# #????????????????????????????????????? | | ????#=#????????????????????????????????????? | | ????#%#????????????????????????????????????? | | ????# #????????????????????????????????????? | | ????# #????????????????????????????????????? | | ????#%#????????????????????????????????????? | | ????#%#????????????????????????????????????? | | ????# #??????#?????????????????????????????? | | ????# #????? ??????????????????????????????? | | ????# #?#### ??????????????????????????????? | | ????# #?# ???????????????????????????????? | | ????# #?# #???????????????????????????????? | | ????# #?# #???????????????????????????????? | | ????# #?# #???????????????????????????????? | | ????# ### #???????????????????????????????? | | ????# #???????????????????????????????? | | ????##### #???????????????#???????????????? | | ????????# =#?????????????? #???????????????? | | ????????#% ############### #???????????????? | | ????????# %k % % @s#???????????????? | | ######### =########### #####???????????????? | | *%#?????????# #???????????????????? | | ############?????????# #???????????????????? | | ????????????????????? #???????????????????? | | ????????????????????? ???????????????????? | | ????????????????????? ???????????????????? | | ????????????????????? ???????????????????? | | ???????????????????? ???????????????????? | | ???????????????????? ???????????????????? | | ???????????????????? ???????????????????? | | ???????????????????? ??????????????????? | | ??????????????????? ??????????????????? | | ??????????????????? ??????????????????? | | ??#####???????????? ??????????????????? | | ### ##???????????# ??????????????????? | | ##???????????### ??????????????????? | | #??????????????????????????????????? | | ### ##?????? ??????????????????????????? | | #?# ### #????????????????????????? | | ?## #???????????????????????? | | ## """ ???????????????????????? | | # """???????????????????????????? | | ## """???????????????????????????? | | ##?# ??????????????????????????? | +----------------------------------------------------+ Best States ------------- Heat Dissipation 25 Energy Generation 10 Energy Capacity 250 Matter Stores 300 Matter Capacity 300 Sight Range 16 Terrain Scan Range 16 Terrain Scan Density 10 Armor Coverage 225 Core Shielding 20 Evasion (%) 44 Recoil Reduction 1 Item Schematics ----------------- None Robot Schematics ------------------ None Fabricated ------------ Nothing Alien Tech Used ----------------- None Achievements -------------- None Challenges ------------ None Game ------ Seed MobileShockMediator Manual? 0 Play Time 00:19:32 Cumulative 102.8 hours Start 2020.04.04 @ 00:24:36 End 2020.04.04 @ 00:42:31 Sessions 1 Manual Loads 0 Difficulty Rogue Special Mode None Game No. 34 Rogue 34 Adventurer 0 Explorer 0 Win Type - Total 1 Types 1/0/0/0/0/0/0 Lore% 49 Gallery% 61 Achievement% 58 Wizard Run 0 Options --------- ASCII 1 Keyboard 1 Movement Numpad Keybinds 0 Fullscreen 1 Font 16/SmallcapsGlow Map View 75x55 Tactical HUD 1 Map Filters NONE Filters NONE Steam 1 RUN: 7a82cb46-472a-46b8-8c4f-7bf8678c6e0f